Cogmind - Beta 13 @@@ ROGUE MODE // 2024.07.29 @ 11:28:58 Player: 777moneymaker Result: Destroyed by as-16634 with Assembled Rifle Performance ------------- Evolutions (0) 0 Regions Visited (2) 400 Robots Destroyed (13) 65 Value Destroyed (309) 309 Prototype IDs (0) 0 Alien Tech Used (0) 0 Bonus (0) 0 TOTAL SCORE: 774 Bonus ------- None Cogmind --------- Core Integrity 0/250 Matter 169/300 Energy 96/100 System Corruption 2% Temperature Cool (0) Movement Walking (120) Location -10/Mines Parts ------- > --- POWER (1) -------- (None) > --- PROPULSION (2) --- Improved Aluminum Leg > --- UTILITY (2) ------ Visual Processing Unit > --- WEAPON (2) ------- Heavy Assault Rifle Heavy Assault Rifle > --- INVENTORY (5) ---- Armored Wheel Medium Storage Unit Large Storage Unit Light Armor Plating Peak State ------------ > --- POWER ------------ Light Nuclear Core > --- PROPULSION ------- Improved Aluminum Leg Improved Aluminum Leg > --- UTILITY ---------- Large Storage Unit Visual Processing Unit > --- WEAPON ----------- Particle Gun Heavy Assault Rifle > --- INVENTORY -------- Light Ion Engine Aluminum Leg Aluminum Leg Improved Aluminum Leg Improved Aluminum Leg Armored Wheel Flight Unit Flight Unit Small Storage Unit Medium Storage Unit Sensor Array Heavy Assault Rifle Heavy Assault Rifle Grenade Launcher Datajack [Rating: 16] Favorites ----------- Power Light Nuclear Core Engine Light Ion Engine Power Core Light Nuclear Core Propulsion Aluminum Leg Leg Aluminum Leg Wheel Wheel Utility Visual Processing Unit Device Heat Sink Storage Large Storage Unit Processor Visual Processing Unit Protection Light Armor Plating Weapon Particle Gun Energy Gun Particle Gun Ballistic Gun Heavy Assault Rifle Launcher Grenade Launcher Build | -11 -10 -10 ------- Run | Yrd Mat Min Slots Evolved . | . . . Power . | . . . Propulsion . | . . . Utility . | . . . Weapon . | . . . Parts Attached 29 | 9 13 7 Power 4 | 1 1 2 Engine 2 | 1 . 1 Core 2 | . 1 1 Reactor . | . . . Propulsion 7 | 4 2 1 Treads . | . . . Leg 5 | 2 2 1 Wheel 2 | 2 . . Hover . | . . . Flight . | . . . Utility 5 | 1 3 1 Device 2 | 1 1 . Storage 1 | . 1 . Processor 1 | . 1 . Hackware . | . . . Protection 1 | . . 1 Artifact . | . . . Weapon 13 | 3 7 3 Energy Gun 4 | 1 3 . Energy Cannon . | . . . Ballistic Gun 7 | 2 3 2 Ballistic Cannon . | . . . Launcher 2 | . 1 1 Special Weapon . | . . . Impact Weapon . | . . . Slashing Weapon . | . . . Piercing Weapon . | . . . Special Melee Weapon . | . . . Unidentified Prototypes . | . . . Parts Lost 5 | . . 5 Power 2 | . . 2 Propulsion 1 | . . 1 Utility 1 | . . 1 Weapon 1 | . . 1 Highest Loss Streak 5 | . . 5 To Critical Strikes . | . . . Average Slot Usage (%) 94 | . 94 91 Engine 3 | . 3 5 Core 9 | . 10 5 Leg 27 | . 28 22 Device 6 | . 7 . Storage 7 | . 6 11 Processor 9 | . 9 14 Energy Gun 10 | . 10 . Ballistic Gun 16 | . 16 22 Naked Turns . | . . . Heaviest Build 31 | 7 31 31 Greatest Support 26 | 20 26 26 Greatest Overweight (x) 1 | . 1 1 Average Overweight (x) . | . . . Largest Inventory Capacity 15 | 5 15 15 Average Capacity 9 | 5 9 11 Most Carried 15 | 4 15 15 Average Carried 8 | 2 8 11 Final Capacity 15 | 5 15 5 Final Carried 15 | 4 15 4 Class Distribution -------------------- 81% | Mutant 18% | Scavenger-Mutant Dominant Class ---------------- Mutant | -10/Materials Mutant | -10/Mines Resources | -11 -10 -10 ----------- Run | Yrd Mat Min Matter Collected 532 | 300 224 8 Remotely . | . . . Salvage Created 428 | 33 347 48 Parts 27 | 2 25 . Haulers Intercepted . | . . . Recyclers Shooed . | . . . Parts Field Recycled . | . . . Retrieved Matter . | . . . Parts Self-Destructed . | . . . Prevented . | . . . Kills | -11 -10 -10 ------- Run | Yrd Mat Min Combat Hostiles Destroyed 15 | 1 8 6 Guns 13 | 1 8 4 AOE 2 | . . 2 Classes Destroyed 5 | 1 3 1 Worker 1 | . 1 . Watcher 3 | . 3 . Swarmer 3 | . 3 . Grunt 6 | 1 5 . Assembled 6 | . . 6 Best Kill Streak 4 | 1 3 4 Combat Bots Only 4 | 1 3 4 Max Kills in Single Turn 2 | 1 1 2 Gunslinging . | . . . Exploded 2 | . . 2 Melee . | . . . Uniques/NPCs Destroyed . | . . . Combat | -11 -10 -10 -------- Run | Yrd Mat Min Hostile Shots Fired 77 | 6 25 46 Missed 13 | 1 4 8 Damage Taken 1186 | 53 237 896 Core 253 | 10 72 171 Absorbed by Shields . | . . . Regen/Repaired (Parts) 22 | . 22 . Core Remaining (%) 96 | 96 . . Volleys Fired 51 | 5 33 13 Largest 2 | 2 2 2 Hottest 88 | 40 88 46 Shots Fired 86 | 10 54 22 Gun 82 | 10 54 18 Cannon . | . . . Launcher 4 | . . 4 Special . | . . . Kinetic 66 | 10 38 18 Thermal 16 | . 16 . Explosive 4 | . . 4 Electromagnetic . | . . . Robot Hit Streak 7 | 7 7 6 Robot Miss Streak 6 | 2 6 3 Penetration Max . | . . . Secondary Targets 3 | . 1 2 Max Gunslinging Chain 1 | . 1 1 Shots Hit Robots 45 | 7 27 11 Core Hits 35 | 2 18 15 Critical Kills . | . . . Critical Parts Destroyed . | . . . Critical Strikes . | . . . Melee Attacks . | . . . Impact . | . . . Slashing . | . . . Piercing . | . . . Sneak Attacks . | . . . Combat Hostiles . | . . . Follow-up Attacks . | . . . Damage Inflicted 774 | 88 360 326 Guns 631 | 88 360 183 Cannons . | . . . Explosions 143 | . . 143 Melee . | . . . Ramming . | . . . Kinetic 506 | 88 235 183 Thermal 125 | . 125 . Explosive 143 | . . 143 Electromagnetic . | . . . Impact . | . . . Slashing . | . . . Piercing . | . . . Highest Corruption 2 | . . 2 Average Corruption 2 | . . 2 Corruption Purged . | . . . Corruption Blocked . | . . . Overload Shots . | . . . Overflow Damage . | . . . Projectiles . | . . . Explosions . | . . . Melee . | . . . Knockbacks . | . . . Impact . | . . . Kinetic . | . . . Secondary . | . . . Self-Inflicted Damage 19 | . . 19 Shots 1 | . . 1 Rammed . | . . . Targets Rammed 1 | . 1 . Kicked 1 | . 1 . Crushed . | . . . Highest Temperature 99 | 6 99 . Average Temperature 27 | 6 30 . Received Heat Transfer 141 | 30 111 . Siege Activations . | . . . Robots Corrupted . | . . . Combat Hostiles . | . . . Parts Fried . | . . . Impact Corruptions . | . . . Robots Melted . | . . . Combat Hostiles . | . . . Parts Melted . | . . . Heat Transferred 296 | . 296 . Parts Sabotaged . | . . . Parts Stolen . | . . . Parts Stripped . | . . . Power Chain Reactions . | . . . Alert | -11 -10 -10 ------- Run | Yrd Mat Min Peak Influence 207 | 20 207 20 Initial 13 | . 13 . Average 45 | 4 50 8 Maximum Alert Level 1 | . 1 . Low Security (%) 92 | 100 91 100 Level 1 7 | . 8 . Level 2 . | . . . Level 3 . | . . . Level 4 . | . . . Level 5 . | . . . High Security . | . . . Max Security . | . . . Squads Dispatched 1 | . 1 . Investigation 1 | . 1 . Extermination . | . . . Reinforcement . | . . . Assault . | . . . Garrison . | . . . Intercept . | . . . Searches Triggered . | . . . Construction Impeded . | . . . Haulers Reinforced . | . . . Active Scanning Responses . | . . . Cargo Convoy Interrupts . | . . . Stealth | -11 -10 -10 --------- Run | Yrd Mat Min Distress Signals 1 | . . 1 Communications Jammed . | . . . Distress Signals . | . . . Times Spotted 25 | 1 14 10 Peak Tracking Total 5 | 1 4 5 Tactical Retreats . | . . . Traps | -11 -10 -10 ------- Run | Yrd Mat Min Traps Triggered 1 | . 1 . Indirectly . | . . . Trap Hack Attempts . | . . . Triggered . | . . . Disarmed . | . . . Reprogrammed . | . . . Reused . | . . . Traps Extracted . | . . . Installed . | . . . Triggered . | . . . Machines | -11 -10 -10 ---------- Run | Yrd Mat Min Machines Disabled . | . . . Max in Single Turn . | . . . Machines Repaired . | . . . Machines Dismantled . | . . . Machines Sabotaged . | . . . Overloaded Fab Kills . | . . . Hacking | -11 -10 -10 --------- Run | Yrd Mat Min Machines Accessed 7 | . 7 . Terminals 4 | . 4 . Fabricators . | . . . Repair Stations 1 | . 1 . Recycling Units 2 | . 2 . Scanalyzers . | . . . Garrison Access . | . . . Total Hacks 15 | . 15 . Successful 9 | . 9 . Failed 6 | . 6 . Catastrophic . | . . . Database Lockouts . | . . . Manual 1 | . 1 . Terminals 11 | . 11 . Fabricators . | . . . Repair Stations 2 | . 2 . Recycling Units 2 | . 2 . Scanalyzers . | . . . Garrison Access . | . . . Terminal Hacks 5 | . 5 . Record 1 | . 1 . Robot Analysis 1 | . 1 . Locate Traps 2 | . 2 . Zone Layout 1 | . 1 . Fabricator Hacks . | . . . Repair Station Hacks 2 | . 2 . Scan Component 1 | . 1 . Repair 1 | . 1 . Recycling Unit Hacks 2 | . 2 . Report Inventory 2 | . 2 . Scanalyzer . | . . . Garrison Access Hacks . | . . . Unauthorized Hacks . | . . . Terminals . | . . . Fabricators . | . . . Repair Stations . | . . . Recycling Units . | . . . Scanalyzers . | . . . Garrison Access . | . . . Data Cores Recovered . | . . . Used . | . . . Hacking Detections 3 | . 3 . Full Trace Events . | . . . Feedback Events . | . . . Feedback Blocked . | . . . Robot Schematics Acquired . | . . . Robots Built . | . . . Authchips . | . . . Time . | . . . Total Robot Build Rating . | . . . Part Schematics Acquired . | . . . Parts Built . | . . . Authchips . | . . . Time . | . . . Total Part Build Rating . | . . . Parts Repaired 1 | . 1 . Time 26 | . 26 . Parts Recycled . | . . . Recycled Matter . | . . . Retrieved Matter . | . . . Retrieved Components . | . . . Parts Scanalyzed . | . . . Part Schematics Acquired . | . . . Parts Damaged . | . . . Bothacking | -11 -10 -10 ------------ Run | Yrd Mat Min Used RIF Installer . | . . . Robots Hacked . | . . . Non-combat . | . . . Combat . | . . . Robot Hacks Applied . | . . . Relay Couplers Released . | . . . Fabnet Peak Effective % . | . . . Robots Rewired . | . . . Allies Hacked . | . . . Hacks Repelled . | . . . Allies | -11 -10 -10 -------- Run | Yrd Mat Min Total Allies . | . . . Largest Group . | . . . Highest-Rated Group . | . . . Highest-Rated Ally . | . . . Total Orders . | . . . Ally Attacks . | . . . Total Damage . | . . . Kills . | . . . Allies Corrupted . | . . . Allies Melted . | . . . Intel | -11 -10 -10 ------- Run | Yrd Mat Min Robot Analysis Total 1 | . 1 . Derelict Logs Recovered . | . . . Drone Launches . | . . . Drone Recoveries . | . . . Exploration | -11 -10 -10 ------------- Run | Yrd Mat Min Turns Passed 1198 | 88 1055 55 Spaces Moved 634 | 77 549 8 Core 17 | 17 . . Treads . | . . . Legs 560 | 3 549 8 Wheels 57 | 57 . . Hover . | . . . Flight . | . . . Fastest Speed 50 | 50 120 120 Average Speed 141 | 74 149 172 Slowest Speed 190 | 120 190 190 Overloaded Moves . | . . . Propulsion Burnouts . | . . . Robots Hopped . | . . . Cave-ins Triggered . | . . . Exploration Rate (%) 30 | 6 81 5 Regions Visited 2 Branch Regions 1 Pre-discovered Areas . | . . . Known Exits Taken . | . . . Unknown Exits Taken 2 | 1 1 . Scrap Searched . | . . . Spaces Dug . | . . . Terrain Destroyed 28 | . . 28 Melee . | . . . Projectile . | . . . AOE 28 | . . 28 Terrain Rammed . | . . . Walls Destroyed . | . . . Machines Disabled . | . . . Actions | -11 -10 -10 --------- Run | Yrd Mat Min Total 859 | 95 736 28 Wait 98 | . 98 . Move 632 | 76 548 8 Hop . | . . . Pick Up 27 | 4 23 . Fast Attach 13 | 6 6 1 Attach 6 | 1 2 3 Detach 1 | 1 . . Swap 10 | 2 5 3 Drop 20 | . 20 . Fire 51 | 5 33 13 Melee . | . . . Ram . | . . . Kick 1 | . 1 . Crush . | . . . Escape Stasis . | . . . Rewire . | . . . Trap . | . . . Miscellaneous . | . . . Route ------- -11/Scrapyard -10/Materials (discovered 4 exits: [*Mat x2] / [*Min] / [*Sub]) -10/Mines History --------- Turn | Location | Event 2 | -11/Scrapyard | Met Revision 17 53 | -11/Scrapyard | Discovered new exit (range 8) 89 | -11/Scrapyard | Entered Materials 174 | -10/Materials | Discovered new exit (range 16) 315 | -10/Materials | Build established: Mutant 579 | -10/Materials | Discovered new exit (range 9) 733 | -10/Materials | Discovered new exit (range 11) 855 | -10/Materials | Discovered new exit (range 13) 909 | -10/Materials | Repaired Grenade Launcher 1144 | -10/Materials | Entered Mines 1145 | -10/Mines | Assembled infested the area 1150 | -10/Mines | Assisted by a Guerilla fighting off Assembled 1177 | -10/Mines | Core integrity fell below 50% 1184 | -10/Mines | Core integrity fell below 20% 1199 | -10/Mines | Destroyed by as-16634 with Assembled Rifle Last Messages --------------- 01162_ Grenade Launcher severed. 01163_ Knocked back. 01165_ as-31001 destroyed. 01168_ as-19257 destroyed. 01172_ Acquired 8 matter. 01175_ The unstable cave ceiling collapses. 01188_ Imp. Aluminum Leg severed. 01189_ Imp. Aluminum Leg destroyed. 01190_ as-31493 destroyed. 01190_ Switching to secondary target: as-34640. 01191_ Hvy. Assault Rifle destroyed. 01193_ Lgt. Armor Plating destroyed. 01195_ Lgt. Nuclear Core destroyed. 01195_ Acquired Hvy. Assault Rifle. 01199_ as-34640 destroyed. 01199_ Switching to secondary target: as-35360. [Achievement: First Step to Greatness] The achievement interface (ESC then open Records) offers an effective way to explore all of your earned achievements as well as seek out new goals for future runs. Map ----- +----------------------------------------------------+ | | | | | | | | | | | | | | | | | | | | | | | | | | | | | | | | | | | | | ????????????????????????????????? | | ??????????????????????#####?????? | | ??????????????????????# ##????? | | ??????????????????????# #????? | | ??????????????????##### #????? | | ???????????# #### a%#?????? | | ???????????# !*a=##????? | | ??????????# =%]=@a##???? | | ??????? #[!=##??? | | ?????????# ## # ####/= #??? | | ??????????????# r ????# #??? | | ??????????????# ?????## ##??? | | ??????????????### ???????####???? | | ??????????????? ???????????????? | | ?????????????? ?????????????????? | | ?????????????#??????????????????? | | ????????????????????????????????? | | ????????????????????????????????? | | ????????????????????????????????? | | ????????????????????????????????? | | ????????????????????????????????? | | ????????????????????????????????? | | ????????????????????????????????? | | ????????????????????????????????? | | ????????????????????????????????? | | ????????????????????????????????? | | ????????????????????????????????? | | ????????????????????????????????? | | ????????????????????????????????? | | ????????????????????????????????? | | ????????????????????????????????? | | ????????????????????????????????? | +----------------------------------------------------+ Best States ------------- Heat Dissipation 35 Energy Generation 14 Energy Capacity 160 Matter Stores 300 Matter Capacity 300 Sight Range 18 Robot Scan Range 14 Terrain Scan Density 10 Armor Coverage 150 Evasion (%) 55 Item Schematics ----------------- None Robot Schematics ------------------ None Fabricated ------------ Nothing Alien Tech Used ----------------- None Achievements -------------- First Step to Greatness Part-time Mechanic Challenges ------------ None Game ------ Seed TeslaCryofiberCloak Manual? 0 Play Time 00:25:08 Cumulative 0.3 hours Start 2024.07.29 @ 11:01:56 End 2024.07.29 @ 11:28:58 Sessions 1 Manual Loads 0 Difficulty Rogue Special Mode None Game No. 2 Rogue 2 Adventurer 0 Explorer 0 Win Type - Total 0 Types 0/0/0/0/0/0/0/0/0 Lore% 0 Gallery% 3 Achievement% 3 Wizard Run 0 Options --------- Layout 0 ASCII 0 Keyboard 1 Movement Numpad Keybinds 0 Fullscreen 2 Font 24/Terminus Map View 76x50 Zoom Use 20% Tactical HUD 1 Map Filters NONE Filters NONE Steam 1 RUN: cf41d94c-d437-4e23-9c16-be3dc03fbc8a